Cogmind - Beta 16 @@@ ROGUE MODE // 2025.12.26 @ 18:24:02 Player: Compilatron Result: Destroyed by as-64011 with Assembled Rifle Performance ------------- Evolutions (0) 0 Regions Visited (2) 400 Robots Destroyed (2) 10 Value Destroyed (81) 81 Prototype IDs (0) 0 Alien Tech Used (0) 0 Bonus (0) 0 TOTAL SCORE: 491 Bonus ------- None Cogmind --------- Core Integrity 0/250 Matter 270/300 Energy 250/250 System Corruption 11% Temperature Cool (54) Movement Rolling (95) Ox1 Location -10/Mines Parts ------- > --- POWER (1) -------- Ion Engine > --- PROPULSION (2) --- Light Treads Wheel > --- UTILITY (2) ------ Small Storage Unit > --- WEAPON (2) ------- Small Laser Small Laser > --- INVENTORY (8) ---- Light Treads Large Matter Pod (150) High-capacity Matter Pod (200) Peak State ------------ > --- POWER ------------ Ion Engine > --- PROPULSION ------- Aluminum Leg Aluminum Leg > --- UTILITY ---------- Small Storage Unit > --- WEAPON ----------- Particle Gun Light Assault Rifle > --- INVENTORY -------- Ion Engine Light Treads Light Treads Wheel Wheel Large Matter Pod Small Laser Small Laser [Rating: 7] Favorites ----------- Power Ion Engine Engine Ion Engine Propulsion Aluminum Leg Treads Light Treads Leg Aluminum Leg Wheel Wheel Utility Small Storage Unit Storage Small Storage Unit Weapon Light Assault Rifle Energy Gun Small Laser Ballistic Gun Light Assault Rifle Build | -11 -10 -10 ------- Run | Yrd Mat Min Slots Evolved . | . . . Power . | . . . Propulsion . | . . . Utility . | . . . Weapon . | . . . Parts Attached 9 | . 2 7 Power 1 | . . 1 Engine 1 | . . 1 Core . | . . . Reactor . | . . . Propulsion 5 | . 1 4 Treads 2 | . . 2 Leg 1 | . 1 . Wheel 2 | . . 2 Hover . | . . . Flight . | . . . Utility . | . . . Device . | . . . Storage . | . . . Processor . | . . . Hackware . | . . . Protection . | . . . Artifact . | . . . Weapon 3 | . 1 2 Energy Gun 3 | . 1 2 Energy Cannon . | . . . Ballistic Gun . | . . . Ballistic Cannon . | . . . Launcher . | . . . Special Weapon . | . . . Impact Weapon . | . . . Slashing Weapon . | . . . Piercing Weapon . | . . . Special Melee Weapon . | . . . Unidentified Prototypes . | . . . Parts Lost 6 | . . 6 Power 1 | . . 1 Propulsion 3 | . . 3 Utility . | . . . Weapon 2 | . . 2 Highest Loss Streak 4 | . . 4 To Critical Strikes . | . . . Average Backups 6 | . 6 6 Power . | . 1 . Propulsion 3 | . 4 2 Utility . | . . 1 Weapon 1 | . 1 1 Tool/Special . | . . . Unused Backups 10 | . 5 5 Power 2 | . 1 1 Propulsion 3 | . 2 1 Utility 3 | . 1 2 Weapon 2 | . 1 1 Tool/Special . | . . . Average Slot Usage (%) 76 | . 85 69 Engine 12 | . 14 11 Leg 17 | . 28 9 Wheel 7 | . . 13 Storage 14 | . 14 14 Energy Gun 10 | . 14 6 Ballistic Gun 13 | . 14 12 Peak Build Rating 7 | . 7 7 Average Rating 5 | . 6 5 On Entrance 6 | 6 6 7 Avg Prop Armor Cover (%) . | . . . Naked Turns . | . . . Heaviest Build 14 | 12 14 14 Greatest Support 20 | 20 20 20 Greatest Overweight (x) . | . . . Average Overweight (x) . | . . . Largest Inventory Capacity 8 | . 8 8 Average Capacity 8 | . 8 8 Most Carried 8 | . 8 8 Average Carried 6 | . 6 6 Final Capacity 8 | 8 8 8 Final Carried 8 | 6 8 3 Class Distribution -------------------- 100% | Mutant Dominant Class ---------------- Mutant | -10/Materials Mutant | -10/Mines Resources | -11 -10 -10 ----------- Run | Yrd Mat Min Matter Collected 432 | 200 48 184 Remotely . | . . . Salvage Created 136 | . 75 61 Parts 5 | . 5 . Haulers Intercepted . | . . . Recyclers Shooed . | . . . Parts Field Recycled . | . . . Retrieved Matter . | . . . Parts Self-Destructed . | . . . Prevented . | . . . Parts Restored . | . . . Kills | -11 -10 -10 ------- Run | Yrd Mat Min Combat Hostiles Destroyed 6 | . 2 4 Guns 6 | . 2 4 Classes Destroyed 2 | . 1 1 Grunt 2 | . 2 . Assembled 4 | . . 4 Best Kill Streak 2 | . 1 2 Combat Bots Only 2 | . 1 2 Max Kills in Single Turn 1 | . 1 1 Gunslinging . | . . . Exploded . | . . . Melee . | . . . Uniques/NPCs Destroyed . | . . . Combat | -11 -10 -10 -------- Run | Yrd Mat Min Hostile Shots Fired 88 | . 14 74 Missed 23 | . 4 19 Hits 65 | . 10 55 Melee 10 | . . 10 Projectile 55 | . 10 45 Damage Taken 1000 | . 162 838 Core 251 | . 41 210 Absorbed by Shields . | . . . Core Remaining (%) 100 | 100 . . Volleys Fired 50 | . 11 39 Largest 2 | . 2 2 Hottest 85 | . 85 85 Shots Fired 68 | . 22 46 Gun 68 | . 22 46 Cannon . | . . . Launcher . | . . . Special . | . . . Kinetic 45 | . 11 34 Thermal 23 | . 11 12 Explosive . | . . . Electromagnetic . | . . . Robot Hit Streak 8 | . 8 7 Robot Miss Streak 3 | . 3 3 Penetration Max . | . . . Secondary Targets 1 | . . 1 Max Gunslinging Chain 1 | . . 1 Shots Hit Robots 38 | . 13 25 Core Hits 19 | . 7 12 Critical Kills . | . . . Critical Parts Destroyed . | . . . Critical Strikes 1 | . . 1 Burn 1 | . . 1 Melee Attacks . | . . . Impact . | . . . Slashing . | . . . Piercing . | . . . Sneak Attacks . | . . . Combat Hostiles . | . . . Follow-up Attacks . | . . . Damage Inflicted 383 | . 149 234 Guns 383 | . 149 234 Cannons . | . . . Explosions . | . . . Melee . | . . . Ramming . | . . . Kinetic 215 | . 57 158 Thermal 168 | . 92 76 Explosive . | . . . Electromagnetic . | . . . Impact . | . . . Slashing . | . . . Piercing . | . . . Highest Corruption 11 | . . 11 Average Corruption 4 | . . 4 Corruption Purged . | . . . Corruption Blocked . | . . . Effects 2 | . . 2 Matter Fused 1 | . . 1 Weapon Failures 1 | . . 1 Overload Shots . | . . . Overflow Damage . | . . . Projectiles . | . . . Explosions . | . . . Melee . | . . . Knockbacks . | . . . Impact . | . . . Kinetic . | . . . Secondary . | . . . Self-Inflicted Damage . | . . . Shots . | . . . Rammed . | . . . Targets Rammed . | . . . Kicked . | . . . Crushed . | . . . Highest Temperature 140 | . 140 92 Average Temperature 50 | . 58 38 Received Heat Transfer 78 | . 78 . Siege Activations . | . . . Martial Activations . | . . . Shielding Activations . | . . . Robots Disrupted . | . . . Combat Hostiles . | . . . Robots Corrupted . | . . . Combat Hostiles . | . . . Parts Fried . | . . . Impact Corruptions . | . . . Robots Melted . | . . . Combat Hostiles . | . . . Parts Melted . | . . . Heat Transferred 471 | . 223 248 Parts Sabotaged . | . . . Parts Stolen . | . . . Parts Stripped . | . . . Power Chain Reactions . | . . . Alert | -11 -10 -10 ------- Run | Yrd Mat Min Maximum Alert Level . | . . . Low Security (%) 100 | . 100 100 Level 1 . | . . . Level 2 . | . . . Level 3 . | . . . Level 4 . | . . . Level 5 . | . . . High Security . | . . . Max Security . | . . . Peak Influence 55 | . 55 17 Initial 17 | . . 17 Average 7 | . 12 2 Influence Increases 65 | . 65 . Destroy 0b10 Robot/C 40 | . 40 . Destroy Leader 10 | . 10 . Lose Combat Pursuer 15 | . 15 . Influence Decreases 65 | . 20 45 Entered New Map 28 | . . 28 Time Decay 37 | . 20 17 Squads Dispatched 1 | . 1 . Investigation . | . . . Extermination . | . . . Reinforcement 1 | . 1 . Assault . | . . . Garrison . | . . . Intercept . | . . . Searches Triggered . | . . . Construction Impeded . | . . . Haulers Reinforced . | . . . Active Scanning Responses . | . . . Cargo Convoy Interrupts . | . . . Stealth | -11 -10 -10 --------- Run | Yrd Mat Min Distress Signals . | . . . Communications Jammed . | . . . Distress Signals . | . . . Times Spotted 22 | . 3 19 Peak Tracking Total 20 | . 2 20 Tactical Retreats 2 | . 1 1 Traps | -11 -10 -10 ------- Run | Yrd Mat Min Traps Triggered 1 | . 1 . Indirectly . | . . . Trap Hack Attempts . | . . . Triggered . | . . . Disarmed . | . . . Reprogrammed . | . . . Reused . | . . . Traps Extracted . | . . . Installed . | . . . Triggered . | . . . Machines | -11 -10 -10 ---------- Run | Yrd Mat Min Machines Disabled . | . . . Max in Single Turn . | . . . Machines Repaired . | . . . Machines Dismantled . | . . . Machines Sabotaged . | . . . Overloaded Fab Kills . | . . . Hacking | -11 -10 -10 --------- Run | Yrd Mat Min Machines Accessed . | . . . Terminals . | . . . Fabricators . | . . . Repair Stations . | . . . Recycling Units . | . . . Scanalyzers . | . . . Garrison Access . | . . . Total Hacks . | . . . Successful . | . . . Failed . | . . . Catastrophic . | . . . Database Lockouts . | . . . Manual . | . . . Terminals . | . . . Fabricators . | . . . Repair Stations . | . . . Recycling Units . | . . . Scanalyzers . | . . . Garrison Access . | . . . Terminal Hacks . | . . . Fabricator Hacks . | . . . Repair Station Hacks . | . . . Recycling Unit Hacks . | . . . Scanalyzer . | . . . Garrison Access Hacks . | . . . Unauthorized Hacks . | . . . Terminals . | . . . Fabricators . | . . . Repair Stations . | . . . Recycling Units . | . . . Scanalyzers . | . . . Garrison Access . | . . . Data Cores Recovered . | . . . Used . | . . . Hacking Detections . | . . . Full Trace Events . | . . . Feedback Events . | . . . Feedback Blocked . | . . . Robot Schematics Acquired . | . . . Robots Built . | . . . Authchips . | . . . Time . | . . . Total Robot Build Rating . | . . . Part Schematics Acquired . | . . . Parts Built . | . . . Authchips . | . . . Time . | . . . Total Part Build Rating . | . . . Part Studies Acquired . | . . . Parts Repaired . | . . . Time . | . . . Parts Recycled . | . . . Recycled Matter . | . . . Retrieved Matter . | . . . Retrieved Components . | . . . Parts Scanalyzed . | . . . Part Schematics Acquired . | . . . Parts Damaged . | . . . Bothacking | -11 -10 -10 ------------ Run | Yrd Mat Min Used RIF Installer . | . . . Robots Hacked . | . . . Non-combat . | . . . Combat . | . . . Robot Hacks Applied . | . . . Relay Couplers Released . | . . . Fabnet Peak Effective % . | . . . Robots Rewired . | . . . Allies Hacked . | . . . Hacks Repelled . | . . . Allies | -11 -10 -10 -------- Run | Yrd Mat Min Total Allies . | . . . Largest Group . | . . . Highest-Rated Group . | . . . Highest-Rated Ally . | . . . Total Orders . | . . . Ally Attacks . | . . . Total Damage . | . . . Kills . | . . . Allies Corrupted . | . . . Allies Melted . | . . . Intel | -11 -10 -10 ------- Run | Yrd Mat Min Active Infowar (turns) . | . . . Robot Analysis Total . | . . . Derelict Logs Recovered . | . . . Drone Launches . | . . . Drone Recoveries . | . . . Exploration | -11 -10 -10 ------------- Run | Yrd Mat Min Turns Passed 374 | . 172 202 Spaces Moved 240 | 1 113 126 Core . | . . . Treads . | . . . Legs 147 | 1 113 33 Wheels 93 | . . 93 Hover . | . . . Flight . | . . . Fastest Speed 80 | 120 120 80 Average Speed 104 | 120 120 90 Slowest Speed 120 | 120 120 120 Overloaded Moves . | . . . Propulsion Burnouts . | . . . Robots Hopped . | . . . Potential Cave-ins . | . . . Cave-ins Triggered . | . . . Exploration Rate (%) 16 | 2 26 22 Regions Visited 2 Branch Regions 1 Pre-discovered Areas . | . . . Known Exits Taken . | . . . Unknown Exits Taken 2 | 1 1 . Scrap Searched . | . . . Spaces Dug . | . . . Terrain Destroyed . | . . . Melee . | . . . Projectile . | . . . AOE . | . . . Terrain Rammed . | . . . Walls Destroyed . | . . . Machines Disabled . | . . . Actions | -11 -10 -10 --------- Run | Yrd Mat Min Total 302 | . 129 173 Wait 1 | . 1 . Move 238 | . 112 126 Hop . | . . . Pick Up 3 | . 2 1 Fast Attach . | . . . Attach 6 | . . 6 Detach . | . . . Swap 3 | . 2 1 Drop 1 | . 1 . Fire 50 | . 11 39 Melee . | . . . Ram . | . . . Kick . | . . . Crush . | . . . Escape Stasis . | . . . Rewire . | . . . Trap . | . . . Miscellaneous . | . . . Route ------- -11/Scrapyard -10/Materials -10/Mines History --------- Turn | Location | Event 1 | -11/Scrapyard | Discovered new exit (range 0) 1 | -11/Scrapyard | Entered Materials 158 | -10/Materials | Discovered new exit (range 6) 173 | -10/Materials | Entered Mines 174 | -10/Mines | Assembled infested the area 179 | -10/Mines | Assisted by a Guerilla fighting off Assembled 252 | -10/Mines | Core integrity fell below 50% 268 | -10/Mines | Lost 4 parts (1p2n1w) 306 | -10/Mines | Build established: Mutant 357 | -10/Mines | Core integrity fell below 20% 358 | -10/Mines | System corruption reached 10% 375 | -10/Mines | Destroyed by as-64011 with Assembled Rifle Last Messages --------------- 00267_ Acquired 12 matter. 00269_ Acquired 18 matter. 00271_ Acquired 9 matter. 00322_ K-01 Serf collects debris. 00323_ Extracted 133 matter. 00324_ Acquired Hcp. Matter Pod. 00325_ K-01 Serf collects debris. 00350_ Knocked back. 00353_ Wheel destroyed. 00353_ System corrupted by crushing effect (+3). 00353_ Knocked back. 00357_ Lgt. Assault Rifle destroyed. 00357_ System corrupted by crushing effect (+5). 00357_ Knocked back. 00363_ K-01 Serf collects debris. 00363_ System corrupted: Sml. Laser failed to cycle. 00363_ as-59066 destroyed. 00366_ K-01 Serf collects debris. 00372_ K-01 Serf destroyed. Map ----- +----------------------------------------------------+ | ??# #???????????????????? | | ??# """ #???????????????????? | | ??# """ #???????????????????? | | ??# """ #???????????????????? | | ??# #???????????????????? | | ??# """ #???????????????????? | | ??# """ #???????????????????? | | ??# """ #???????????????????? | | ??# #???????????????????? | | ??### #####???????????????????? | | ????# #???????????????????????? | | ????# #???????????????????????? | | ????# #???????????????????????? | | ????# #???????????????????????? | | ????# #???????????????????????? | | ????# #????????#####??????????? | | ????# #????????# ???????????? | | ???## #????????# #???????????? | | ??## #????????# #???????????? | | ??# ##??????## #######?????? | | ??# ##????## = !*| #????## | | ?## ###??# *!%= #???## | | ?# """ #### !|%## #???# | | ?# """ a## !### #??## | | ?# """ *a ###?# #### | | ?## @ %%a ##???# | | ??### ## ####????# | | ????## #####???????###### | | ?????#### #????####????????# | | ????????# #???## ##???????# | | ????????# #??## ####????## | | ????????# #??# ##????#### | | ????????# #?## ##??????? | | ???????## ### #??????? | | ???????# #??????? | | ???????# ##??????? | | ???????# ### #??????? | | ???????## ####?## !! #??????? | | ????????####?????# ! ! #??????? | | ?????????????????# ! #??????? | | ?????????????????# !!! #??????? | | ?????????????????# #??????? | | ?????????????????########??????? | | ???????????????????????????????? | | ???????????????????????????????? | | ???????????????????????????????? | | ???????????????????????????????? | | ???????????????????????????????? | | ???????????????????????????????? | | ???????????????????????????????? | +----------------------------------------------------+ Best States ------------- Heat Dissipation 25 Energy Generation 10 Energy Capacity 250 Matter Stores 300 Matter Capacity 300 Sight Range 16 Terrain Scan Density 10 Evasion (%) 55 Recoil Reduction 1 Item Schematics ----------------- None Robot Schematics ------------------ None Fabricated ------------ Nothing Repaired ---------- Nothing Studied --------- None Alien Tech Used ----------------- None Achievements -------------- None Challenges ------------ None Game ------ Seed RiotBurstStreamer Manual? 0 Play Time 00:06:12 Cumulative 62.4 hours Start 2025.12.26 @ 18:20:15 End 2025.12.26 @ 18:24:02 Sessions 1 Manual Loads 0 Difficulty Rogue Special Mode None Game No. 93 Rogue 71 Adventurer 20 Explorer 2 Win Type - Total 0 Types 0/0/0/0/0/0/0/0/0/0 Lore% 42 Gallery% 37 Achievement% 26 Wizard Run 0 Options --------- Layout 1 ASCII 0 Keyboard 0 Movement Numpad Keybinds 0 Fullscreen 2 Font 24/Smallcaps Map View 50x35 Zoom Use 0% Tactical HUD 1 Map Filters NONE Filters NONE Steam 1 RUN: b2ee9485-3367-48a1-bd61-4d2e2d604f08